bitfinex-derivatives/quotes_ETHF0:USTF0_20250824
["timestamp","ask_amount","ask_price","bid_price","bid_amount"]
[1756075294890,3.2078,4746.9,4746.5,20.109]
[1756075295194,1.2535,4746.7,4746.5,20.109]
[1756075295394,0.8131,4746.6,4746.5,20.109]
[1756075295592,1.2535,4746.6,4746.5,20.109]
[1756075295789,0.8131,4746.4,4746.0,3.2078]
[1756075295989,0.3611,4746.4,4746.3,0.4393]
[1756075296187,0.3611,4746.4,4745.5,3.2078]
[1756075296188,0.4404,4746.4,4745.5,3.2078]
[1756075296388,3.2078,4746.4,4745.8,20.5473]
[1756075296589,3.2078,4746.4,4745.7,30.7723]
[1756075296590,1.2535,4745.8,4745.7,30.7723]
[1756075296790,1.2535,4745.8,4744.9,3.2078]
[1756075297092,0.452,4745.3,4745.1,0.4393]
[1756075297292,40.8,4747.3,4745.1,0.4393]
[1756075297293,4.0093,4746.3,4745.1,0.4393]
[1756075297492,0.452,4746.2,4745.3,0.42151]
[1756075297688,0.452,4746.2,4745.4,0.4393]
[1756075297889,0.452,4746.2,4745.5,20.107]
[1756075298089,0.452,4746.2,4745.9,0.4393]
[1756075298290,1.2535,4746.2,4746.1,0.4393]
[1756075298588,0.3611,4746.1,4746.0,20.107]
[1756075298784,0.8015,4746.1,4746.0,20.107]
[1756075298991,3.2078,4746.3,4746.0,20.5463]
[1756075299191,0.452,4746.1,4746.0,20.107]
[1756075299390,0.8131,4746.1,4746.0,20.107]
[1756075299593,41.6131,4746.1,4746.0,20.5463]
[1756075299792,42.0535,4746.1,4746.0,20.5463]
[1756075300499,42.0535,4746.1,4746.0,20.107]
[1756075301597,42.0535,4746.1,4746.0,20.5463]
[1756075301993,42.0535,4746.1,4745.5,20.107]
[1756075301994,40.8,4746.1,4745.5,20.107]
[1756075302193,3.2078,4745.6,4745.5,20.107]
[1756075302395,4.4613,4745.6,4745.5,20.107]
[1756075303197,4.4613,4745.6,4745.5,20.5463]
[1756075303398,5.2876,4745.6,4745.5,20.8383]
[1756075303999,0.8924,4745.4,4745.1,20.107]
[1756075304203,0.8263,4745.2,4744.9,20.105]
[1756075304496,2.0798,4745.0,4744.9,20.397]
[1756075304704,2.0798,4745.0,4744.9,20.105]
[1756075305102,2.0798,4745.0,4744.4,20.105]
[1756075305309,2.0798,4745.0,4744.9,0.292]
[1756075305608,2.0798,4745.0,4744.9,0.7313]
[1756075305904,3.2078,4745.1,4745.0,0.7313]
[1756075306104,3.2078,4745.1,4745.0,20.8353]
[1756075306497,4.8472,4745.1,4745.0,0.7313]
[1756075306698,5.2876,4745.1,4745.0,0.7313]
[1756075307900,5.2876,4745.1,4744.3,30.34]
[1756075308100,0.8263,4745.0,4744.9,0.292]
[1756075308702,1.2783,4745.0,4744.9,0.7313]
[1756075308908,3.2078,4745.1,4745.0,0.7313]
[1756075309101,4.246,4745.1,4745.0,20.8353]
[1756075309300,4.8472,4745.1,4745.0,20.8353]
[1756075309705,5.2876,4745.1,4745.0,20.8353]
[1756075311405,2.0798,4745.1,4745.0,20.8353]
[1756075311608,1.6394,4745.1,4745.0,20.8353]
[1756075311917,0.9882,4745.1,4745.0,20.8353]
[1756075312211,0.9882,4745.1,4745.0,20.8333]
[1756075312405,2.0798,4745.1,4745.0,20.8333]
[1756075313611,1.6394,4745.1,4745.0,20.8333]
[1756075313810,0.452,4745.1,4745.0,20.8333]
[1756075314209,1.2783,4745.1,4745.0,20.8333]
[1756075314405,2.0798,4745.1,4745.0,20.8333]
[1756075314605,1.2783,4745.1,4745.0,20.8333]
[1756075314800,0.9882,4745.1,4745.0,21.25484]
[1756075315006,0.452,4745.4,4745.3,0.292]
[1756075315211,3.2078,4745.6,4745.5,0.7313]
[1756075315510,3.2078,4745.6,4745.5,20.8313]
[1756075316603,3.8849,4745.6,4745.5,20.8313]
[1756075317113,3.2078,4745.6,4745.5,20.8313]
[1756075317702,4.367,4746.3,4746.2,0.2813]
[1756075317907,5.2326,4746.3,4746.2,0.7047]
[1756075320012,4.8046,4746.3,4746.2,0.7047]
[1756075320213,5.2326,4746.3,4746.2,0.7047]
[1756075320407,5.2326,4746.3,4746.2,0.2813]
[1756075320610,3.2078,4746.3,4746.2,0.7047]
[1756075321210,5.2131,4746.3,4746.2,0.7047]
[1756075321810,2.0053,4746.1,4746.0,20.094]
[1756075322407,2.0053,4745.4,4745.3,20.7987]
[1756075322614,2.0053,4745.4,4745.3,20.3753]
[1756075322917,2.0053,4745.4,4745.3,20.7987]
[1756075323507,2.0053,4745.4,4745.3,20.094]
[1756075324117,2.0053,4745.4,4745.3,20.3753]
[1756075324317,2.0053,4745.4,4745.3,20.7987]
[1756075324514,0.9543,4745.4,4745.3,20.7987]
[1756075324718,0.4376,4745.4,4745.3,20.7987]
[1756075324914,40.8,4745.6,4745.4,0.4234]
[1756075325125,41.2376,4745.6,4745.5,0.7047]
[1756075325515,41.577,4745.6,4745.5,0.7047]
[1756075325714,41.577,4745.6,4745.3,20.094]
[1756075325715,3.2078,4745.7,4745.6,0.7047]
[1756075325915,0.4376,4746.0,4745.6,0.7047]
[1756075326121,40.8,4745.9,4745.8,0.2813]
[1756075326321,0.4376,4746.0,4745.8,0.7047]
[1756075326521,0.4376,4746.0,4745.3,20.094]
[1756075326522,0.4376,4746.0,4745.9,0.7047]
[1756075327021,0.4376,4746.0,4745.9,20.7937]
[1756075327719,3.2078,4746.3,4746.2,0.7047]
[1756075329520,0.4376,4746.6,4746.5,0.2813]
[1756075329719,0.4376,4746.6,4746.5,20.7917]
[1756075329921,0.6575,4746.6,4746.5,20.7917]
[1756075330116,0.4376,4746.6,4746.5,20.7917]
[1756075331526,2.0053,4746.8,4746.7,0.7047]
[1756075331721,5.2131,4746.8,4746.7,0.2813]
[1756075332025,4.7851,4746.8,4746.7,0.7047]
[1756075333026,4.4457,4746.8,4746.7,0.7047]
[1756075333324,4.1621,4746.8,4746.7,0.7047]
[1756075333828,5.2131,4746.8,4746.7,0.7047]
[1756075334227,4.1621,4746.8,4746.7,0.7047]
[1756075334428,3.7245,4746.8,4746.7,0.7047]
[1756075334628,3.2078,4746.8,4746.7,0.7047]
[1756075335319,1.205,4747.1,4746.8,0.4234]
[1756075335520,1.2283,4747.1,4747.0,0.2813]
[1756075335721,0.5167,4747.1,4747.0,0.7047]
[1756075335923,3.7245,4747.4,4747.3,0.2813]
[1756075336121,3.6454,4747.4,4747.3,20.7827]
[1756075336324,3.2078,4747.4,4747.3,20.7827]
[1756075337430,3.8653,4747.4,4747.3,20.7827]
[1756075337722,3.6454,4747.4,4747.3,20.7827]
[1756075337923,3.2078,4747.4,4747.3,20.7827]
[1756075338124,0.5167,4747.9,4747.4,0.4234]
[1756075338319,1.5773,4747.9,4747.8,0.7047]
[1756075338920,1.2379,4747.9,4747.8,0.7047]
[1756075339127,0.7344,4748.2,4747.9,0.4234]
[1756075339428,0.7344,4748.2,4748.1,0.7047]
[1756075339628,3.2078,4748.4,4748.3,0.7047]
[1756075340228,3.2078,4748.4,4748.3,4.87405293]
[1756075340729,0.9543,4749.1,4749.0,0.7047]
[1756075341029,0.9543,4749.1,4749.0,20.7757]
[1756075341329,1.5773,4749.1,4749.0,20.7757]
[1756075343931,2.0053,4749.1,4749.0,20.7757]
[1756075344129,2.0053,4749.1,4747.9,30.7654]
[1756075344130,0.5167,4748.0,4747.9,30.7654]
[1756075344434,0.9543,4748.0,4747.9,50.8274]
[1756075344826,1.5773,4748.0,4747.9,50.8274]
[1756075345133,2.0053,4748.0,4747.9,50.404]
[1756075346125,2.0053,4748.0,4747.2,3.62914]
[1756075346331,2.0053,4747.4,4747.3,20.7647]
[1756075346933,2.0053,4747.4,4747.3,20.3413]
[1756075347433,2.0053,4747.4,4747.3,20.7647]
[1756075347634,0.4376,4747.4,4747.3,20.7647]
[1756075347932,0.8882,4747.7,4747.6,0.6993]
[1756075348536,1.6058,4747.7,4747.6,0.6993]
[1756075348736,3.2078,4747.8,4747.6,0.6993]
[1756075348936,3.6506,4747.8,4747.7,0.6993]
[1756075349437,3.2078,4747.8,4747.7,0.6993]
[1756075349632,3.8785,4748.8,4747.7,7.6359]
[1756075349938,5.2353,4748.8,4748.7,0.6993]
[1756075350238,5.2353,4748.8,4748.7,20.3262]
[1756075350631,5.2353,4748.8,4748.7,20.055]
[1756075351138,9.2353,4748.8,4748.7,20.055]
[1756075351732,9.2353,4748.8,4748.7,20.3262]
[1756075352034,8.0175,4748.8,4748.1,20.053]
[1756075352334,5.2353,4748.2,4748.1,20.3242]
[1756075352534,2.0275,4748.2,4748.1,21.3035]
[1756075353239,5.2353,4748.2,4748.1,21.3035]
[1756075353436,5.2353,4748.2,4748.1,20.3242]
[1756075354836,5.2353,4748.2,4748.1,20.7523]
[1756075355042,5.2353,4748.2,4748.1,21.0763]
[1756075355243,5.2353,4748.2,4748.1,21.3035]
[1756075355744,4.4603,4748.2,4748.1,21.3035]
[1756075356144,4.1855,4748.2,4748.1,21.3035]
[1756075356544,3.9576,4748.2,4748.1,21.3035]
[1756075356843,0.7498,4748.2,4748.1,21.3035]
[1756075357445,4.4603,4748.2,4748.1,21.3035]
[1756075357745,5.2353,4748.2,4748.1,21.3035]
[1756075358353,2.0275,4748.2,4748.1,21.3035]
[1756075358653,5.2353,4748.2,4748.1,21.3035]
[1756075359658,5.2353,4748.2,4748.1,20.053]
[1756075360659,5.2353,4748.2,4748.1,21.3035]
[1756075360854,4.4603,4748.2,4748.1,21.3035]
[1756075361158,3.2078,4748.2,4748.1,21.3035]
[1756075362156,2.0275,4749.1,4749.0,1.2505]
[1756075362357,2.0275,4749.1,4749.0,21.2905]
[1756075362861,3.2078,4749.3,4749.2,0.9265]
[1756075363059,3.6506,4749.3,4749.2,1.2505]
[1756075363253,3.9576,4749.3,4749.2,1.2505]
[1756075364054,4.4603,4749.3,4749.2,1.2505]
[1756075364250,5.2353,4749.3,4749.2,0.2712]
[1756075364454,5.2353,4749.3,4749.2,20.036]
[1756075365458,5.2353,4749.3,4749.2,20.3072]
[1756075365659,5.2353,4749.3,4749.2,21.2865]
[1756075365863,3.6506,4749.3,4749.2,21.2865]
[1756075366159,5.2353,4749.3,4749.2,20.5344]
[1756075367756,0.5349,4748.5,4748.4,0.9265]
[1756075367963,2.0275,4748.2,4748.1,1.2505]
[1756075368165,2.0275,4748.2,4748.1,21.2815]
[1756075369558,2.0275,4748.2,4748.1,20.3022]
[1756075370564,1.2525,4748.2,4748.1,21.2815]
[1756075370760,3.2078,4748.6,4748.5,1.2505]
[1756075370961,3.2078,4748.6,4748.5,21.2785]
[1756075371363,4.4603,4749.3,4749.2,1.2505]
[1756075371665,5.2353,4749.3,4749.2,21.2765]
[1756075371861,5.2353,4749.3,4749.2,20.2972]
[1756075372261,5.2353,4749.3,4749.2,21.2765]
[1756075372462,5.2353,4749.3,4749.2,20.2972]
[1756075373066,4.0175,4749.3,4748.8,20.025]
[1756075373266,0.8097,4748.9,4748.8,20.2962]
[1756075373569,2.0275,4748.9,4748.8,20.025]
[1756075374564,0.4428,4749.2,4748.8,20.5234]
[1756075374771,2.0275,4749.2,4749.1,1.2505]
[1756075375167,3.2078,4749.3,4749.2,1.2505]
[1756075375367,3.2078,4749.3,4749.2,21.2715]
[1756075375972,5.2353,4749.3,4749.2,20.2922]
[1756075376171,0.8097,4749.0,4748.9,20.02]
[1756075376474,2.0275,4749.0,4748.9,20.2912]
[1756075376668,2.0275,4749.0,4748.9,21.2705]
[1756075376975,1.4463,4749.0,4748.9,21.2705]
[1756075377170,0.2748,4749.0,4748.9,21.2705]
[1756075377371,0.7176,4749.0,4748.9,21.2705]
[1756075377672,0.7498,4749.0,4748.9,21.2705]
[1756075377966,0.4428,4749.0,4748.9,21.2705]
[1756075379579,3.4842,4749.3,4748.9,20.5184]
[1756075379869,0.46,4749.2,4749.1,0.5124]
[1756075380085,0.46,4749.2,4749.1,1.2516]
[1756075380274,3.2078,4749.3,4749.2,1.2516]
[1756075381077,3.2078,4749.8,4749.7,0.2867]
[1756075381282,3.2078,4749.8,4749.7,20.7085]
[1756075381473,3.6678,4749.8,4749.7,20.7085]
[1756075381680,5.2354,4749.8,4749.7,20.2997]
[1756075381881,0.7824,4749.5,4749.4,20.012]
[1756075382178,2.0276,4749.5,4749.4,20.2987]
[1756075382581,2.0276,4749.5,4749.4,20.012]
[1756075383483,2.0276,4749.1,4749.0,0.2867]
[1756075383782,5.2354,4749.1,4749.0,0.2867]
[1756075384177,0.8057,4748.7,4748.1,0.4088]
[1756075384375,5.2354,4748.6,4748.5,0.2867]
[1756075384681,5.2354,4748.6,4748.5,0.6955]
[1756075385780,1.2219,4748.3,4748.2,20.007]
[1756075385977,2.0276,4748.3,4748.2,20.007]
[1756075387080,0.7824,4747.8,4747.7,20.2917]
[1756075387382,3.8885,4747.8,4747.7,20.7005]
[1756075387579,3.2078,4747.8,4747.7,20.7005]
[1756075387780,3.6678,4747.8,4747.7,20.7005]
[1756075388284,0.46,4748.2,4747.7,20.7005]
[1756075388474,0.46,4748.2,4748.1,0.2867]
[1756075388684,3.2078,4748.3,4748.1,0.2867]
[1756075388879,3.2078,4748.3,4748.2,20.6985]
[1756075391982,2.3778,4748.3,4748.2,25.11976]
[1756075392178,3.2078,4749.1,4749.0,0.42118]
[1756075392374,3.2078,4749.1,4749.0,20.0]
[1756075393083,0.4395,4749.4,4749.1,0.42118]
[1756075393282,0.4395,4749.4,4749.0,20.0]
[1756075393482,0.4395,4749.2,4749.0,20.0]
[1756075393881,0.4395,4749.1,4749.0,20.0]
[1756075394079,4.4502,4749.7,4749.0,20.42118]
[1756075394286,0.7248,4749.6,4749.0,20.42118]
[1756075394482,1.2219,4749.6,4749.0,20.42118]
[1756075395177,0.4395,4749.5,4749.0,20.42118]
[1756075395383,0.8995,4749.4,4749.1,0.42117]
[1756075395682,0.8995,4749.6,4749.0,20.0]
[1756075395897,0.4395,4749.6,4749.5,0.42114]
[1756075396081,3.2078,4749.7,4749.5,0.42114]
[1756075396277,3.2078,4749.7,4749.6,19.995]
[1756075396476,0.4395,4750.0,4749.6,19.995]
[1756075396683,0.4395,4750.0,4749.6,20.41613]
[1756075396978,0.4395,4749.9,4749.7,0.42112]
[1756075397376,3.6678,4750.3,4749.8,0.42111]
[1756075397582,3.2078,4750.3,4749.7,1.05282]
[1756075397786,3.2078,4750.3,4750.2,0.42108]
[1756075397987,3.2078,4750.3,4750.2,20.41408]
[1756075399095,0.4395,4750.3,4750.2,19.993]
[1756075399391,1.1759,4750.3,4750.2,19.993]
[1756075399582,0.4395,4750.3,4750.2,19.993]
[1756075401986,1.4055,4750.3,4750.2,19.993]
[1756075402192,1.6819,4750.3,4750.2,19.993]
[1756075402491,2.0276,4750.3,4750.2,19.993]
[1756075402786,3.2078,4750.7,4749.4,3.2078]
[1756075402987,2.0276,4749.6,4749.5,19.984]
[1756075403192,0.4395,4750.0,4749.5,19.984]
[1756075403395,0.4395,4750.0,4749.5,20.40514]
[1756075403594,0.4395,4750.0,4749.6,0.42112]
[1756075404287,0.4395,4750.0,4749.8,0.42111]
[1756075404585,0.4395,4749.9,4749.8,0.42111]
[1756075404892,3.6473,4750.3,4750.0,0.42109]
[1756075405094,3.2078,4750.3,4750.1,19.983]
[1756075405393,0.4395,4750.2,4750.1,19.983]
[1756075405983,1.6819,4750.2,4750.1,19.983]
[1756075406696,0.8995,4750.2,4750.1,19.983]
[1756075406992,0.4395,4750.2,4750.1,19.983]
[1756075409287,0.4323,4750.5,4750.1,19.983]
[1756075409483,0.4323,4750.4,4750.1,19.983]
[1756075409696,0.4323,4750.4,4750.1,20.40408]
[1756075409898,0.8482,4750.5,4750.1,20.40408]
[1756075410086,0.4323,4750.4,4750.2,0.42107]
[1756075410291,0.4323,4751.6,4750.5,1.05263]
[1756075410588,0.4323,4751.6,4751.3,0.42098]
[1756075410786,0.4323,4751.6,4751.4,19.972]
[1756075411193,3.4846,4751.7,4751.4,19.972]
[1756075411382,3.2078,4751.7,4751.5,0.42096]
[1756075411587,1.9656,4751.2,4751.1,19.971]
[1756075412485,5.1734,4751.2,4751.1,19.971]
[1756075412696,1.1766,4751.1,4750.9,19.97]
[1756075412991,1.9656,4751.0,4750.9,19.97]
[1756075414297,4.789,4751.0,4750.2,19.966]
[1756075414498,1.6372,4749.8,4749.7,3.2078]
[1756075414686,3.2078,4751.0,4749.7,3.2078]
[1756075414687,0.4159,4750.7,4749.7,23.1738]
[1756075414892,0.8482,4750.7,4750.1,0.42108]
[1756075415092,0.4323,4750.6,4750.2,19.966]
[1756075415292,3.6237,4751.0,4750.2,19.966]
[1756075415492,0.4323,4750.5,4750.2,19.966]
[1756075415899,0.789,4750.3,4750.2,19.966]
[1756075416096,1.9656,4750.3,4750.2,19.966]
[1756075417188,0.8482,4750.3,4750.2,19.966]
[1756075417387,0.4323,4750.3,4750.2,19.966]
[1756075417898,0.4323,4750.6,4750.2,20.38707]
[1756075418096,0.4323,4750.6,4750.3,0.42107]
[1756075418292,0.4323,4751.0,4750.5,0.42105]
[1756075418492,0.4159,4751.2,4750.3,3.2078]
[1756075418795,0.4323,4751.3,4750.3,3.2078]
[1756075419200,0.7091,4751.3,4750.6,0.42104]
[1756075419390,0.7091,4751.3,4750.7,19.962]
[1756075420096,3.2078,4751.8,4750.7,19.962]
[1756075420300,3.9169,4751.8,4751.0,0.421]
[1756075420697,3.9169,4751.8,4750.8,0.42102]
[1756075420896,0.4159,4751.5,4750.6,30.316]
[1756075421197,1.9656,4750.7,4750.6,50.276]
[1756075421801,5.1734,4750.7,4750.6,50.275]
[1756075422102,1.125,4749.9,4749.8,3.2078]
[1756075422302,1.6372,4749.9,4749.8,23.1658]
[1756075423293,40.8,4751.7,4749.8,23.1658]
[1756075423294,0.4159,4750.6,4749.8,23.1658]
[1756075423498,0.4323,4750.5,4749.8,23.1658]
[1756075423701,0.4323,4750.5,4750.0,0.42109]
[1756075423903,0.4323,4750.4,4749.8,23.58691]
[1756075424103,0.8482,4750.3,4749.9,0.4211]
[1756075424305,0.6927,4750.6,4750.0,20.37709]
[1756075424603,0.4323,4750.4,4750.0,19.956]
[1756075424805,0.4323,4750.8,4750.2,3.2078]
[1756075425005,0.4323,4750.8,4750.4,0.42106]
[1756075425205,0.4323,4750.7,4750.5,19.955]
[1756075425394,3.2078,4750.9,4750.5,19.955]
[1756075425598,0.4323,4751.5,4751.2,0.42098]
[1756075425803,0.4323,4751.4,4751.3,19.954]
[1756075427303,0.3284,4752.1,4751.3,20.37497]
[1756075427496,0.3284,4752.0,4750.6,3.2078]
[1756075427695,0.5095,4750.7,4750.6,3.2078]
[1756075427899,1.1766,4750.7,4750.6,23.1608]
[1756075428101,1.1766,4750.7,4750.6,19.953]
[1756075428412,0.3284,4750.7,4750.6,19.952]
[1756075428597,1.1766,4750.7,4750.6,19.952]
[1756075429202,0.8482,4750.7,4750.6,19.952]
[1756075429601,1.1766,4750.7,4750.6,19.952]
[1756075430208,0.8482,4750.7,4750.6,19.952]
[1756075430601,1.1766,4750.7,4750.6,19.952]
[1756075431703,0.7443,4750.7,4750.1,0.42108]
[1756075431904,0.3284,4750.6,4750.3,0.42107]
[1756075432206,0.4323,4750.3,4750.2,19.949]
[1756075432799,0.4323,4750.5,4750.2,20.37008]
[1756075433004,0.4323,4750.9,4750.2,19.949]
[1756075433209,0.4323,4750.9,4750.3,0.42106]
[1756075433708,3.2078,4751.0,4750.4,0.42105]
[1756075433908,0.4323,4750.9,4750.5,0.42105]
[1756075434502,0.4323,4750.9,4750.2,23.1568]
[1756075434708,40.8,4752.8,4750.2,23.1568]
[1756075434709,3.9169,4751.5,4750.3,4.26048]
[1756075435009,0.8482,4751.3,4750.3,3.2078]
[1756075435211,0.7091,4750.8,4750.7,0.42103]
[1756075435407,0.4323,4750.8,4750.7,0.42103]
[1756075435608,0.8482,4751.2,4750.4,19.946]
[1756075436006,0.8482,4751.1,4750.7,0.42103]
[1756075436207,1.6372,4750.8,4750.7,0.42103]
[1756075436507,0.4323,4750.8,4750.7,0.42103]
[1756075436810,3.2078,4751.5,4750.4,19.946]
[1756075436811,0.4323,4751.1,4751.0,0.42101]
[1756075437014,0.4323,4751.1,4751.0,20.36601]
[1756075438200,0.4016,4751.8,4751.7,0.42095]
[1756075438407,0.4237,4752.2,4751.7,19.943]
[1756075438608,0.4016,4752.1,4751.7,19.943]
[1756075438911,0.4016,4752.2,4751.7,20.36394]
[1756075439117,0.4016,4752.0,4751.8,0.42093]
[1756075439414,0.4016,4752.0,4751.8,0.58870747]
[1756075439615,0.4016,4752.0,4751.9,3.2078]
[1756075442815,0.7492,4752.5,4752.3,0.42089]
[1756075442816,0.4016,4752.5,4752.3,0.42089]
[1756075443117,0.4016,4752.8,4752.4,19.939]
[1756075443710,0.4016,4752.8,4752.6,0.42086]
[1756075443922,3.2078,4752.9,4752.6,0.42086]
[1756075444128,0.4237,4753.2,4752.4,19.939]
[1756075444129,0.4237,4753.2,4752.8,0.42084]
[1756075444314,0.4016,4753.0,4752.9,19.936]
[1756075444513,1.1107,4753.0,4752.9,19.936]
[1756075444714,0.4016,4753.0,4752.9,19.936]
[1756075445317,0.8253,4753.4,4752.9,20.35683]
[1756075445521,0.4016,4753.3,4752.9,20.35683]
[1756075445821,0.4016,4753.2,4753.0,0.42083]
[1756075446320,0.4016,4753.2,4752.9,19.936]
[1756075446619,0.4016,4753.3,4753.1,0.42082]
[1756075447017,0.4016,4753.2,4753.1,0.42082]
[1756075447414,0.8253,4753.1,4752.9,19.936]
[1756075447610,0.3255,4753.4,4753.0,0.42082]
[1756075447811,0.8253,4753.7,4753.5,0.42078]
[1756075448017,0.8253,4753.7,4753.6,19.93]
[1756075448216,1.6181,4753.7,4752.5,3.2078]
[1756075448421,1.1508,4753.5,4752.6,19.93]
[1756075448616,0.4237,4753.4,4752.6,19.93]
[1756075448819,0.4016,4753.3,4753.1,0.42082]
[1756075449014,0.4016,4753.3,4753.2,19.93]
[1756075449411,1.1107,4753.3,4753.2,19.93]
[1756075449922,1.3852,4753.3,4753.2,19.93]
[1756075450122,1.6181,4753.3,4753.2,19.93]
[1756075450923,0.4016,4753.3,4753.2,19.93]
[1756075451925,0.4237,4753.7,4753.2,20.35081]
[1756075452122,0.4016,4754.0,4753.4,0.42079]
[1756075452421,0.4016,4754.0,4753.5,0.42078]
[1756075452623,0.4016,4753.9,4753.5,0.42078]
[1756075452824,0.4237,4754.1,4753.5,0.42078]
[1756075452825,1.2165,4754.1,4753.5,0.42078]
[1756075453020,0.4016,4753.7,4753.5,0.42078]
[1756075453316,0.4237,4754.1,4753.3,0.4208]
[1756075453522,1.9436,4753.3,4753.2,19.93]
[1756075453722,0.4237,4753.7,4753.3,0.4208]
[1756075453923,3.2078,4754.2,4753.3,0.4208]
[1756075453924,4.7498,4754.2,4753.3,3.2078]
[1756075454124,0.4016,4754.1,4753.3,3.2078]
[1756075454420,0.7091,4754.0,4753.3,3.2078]
[1756075454617,0.7928,4753.9,4753.3,3.2078]
[1756075454818,0.7928,4753.8,4753.3,3.2078]
[1756075455019,0.4016,4753.6,4753.5,0.42078]
[1756075455323,0.4016,4753.6,4753.3,3.6286]
[1756075455522,0.4237,4753.5,4753.3,3.6286]
[1756075455723,0.4016,4753.4,4753.3,3.6286]
[1756075456515,0.4016,4753.6,4753.4,0.42079]
[1756075456720,1.6181,4753.4,4753.3,3.2078]
[1756075456925,1.9436,4753.4,4753.3,23.1268]
[1756075457622,1.6181,4753.4,4753.3,23.1268]
[1756075457824,3.2078,4754.2,4752.9,30.302]
[1756075457825,1.1508,4753.3,4752.9,30.302]
[1756075458026,1.9436,4753.0,4752.9,30.302]
[1756075458220,1.9436,4753.0,4752.9,50.219]
[1756075458420,0.4016,4753.0,4752.9,50.219]
[1756075458820,0.7492,4753.4,4753.0,0.42082]
[1756075458821,0.4016,4753.3,4753.0,0.42082]
[1756075459323,1.9436,4753.0,4752.9,50.219]
[1756075459521,1.6181,4753.0,4752.9,50.219]
[1756075459721,1.1107,4753.0,4752.9,50.219]
[1756075459917,0.4016,4753.0,4752.9,50.219]
[1756075460122,0.8854,4753.9,4753.3,0.4208]
[1756075460322,0.8854,4753.9,4752.9,50.219]
[1756075460323,0.4016,4753.9,4753.5,0.42078]
[1756075460530,0.4016,4753.8,4753.6,20.33578]
[1756075460727,1.6181,4753.9,4753.6,20.33578]
[1756075460927,0.4016,4753.7,4753.6,20.33578]
[1756075461224,0.4016,4753.9,4753.7,0.42076]
[1756075461631,0.4016,4754.3,4753.7,0.42076]
[1756075461828,1.7107,4754.1,4753.7,0.42076]
[1756075462028,0.5599,4754.0,4753.7,0.42076]
[1756075462230,0.4016,4753.8,4753.6,19.915]
[1756075462529,1.9436,4753.7,4753.6,19.915]
[1756075462923,0.4016,4753.7,4753.6,19.915]
[1756075463530,0.4237,4754.1,4753.6,20.33577]
[1756075463735,0.4016,4753.8,4753.6,20.33577]
[1756075464134,0.4016,4753.7,4753.6,20.33577]
[1756075464532,0.4016,4754.0,4753.7,0.42076]
[1756075465434,0.4016,4753.9,4753.7,0.42076]
[1756075466031,0.4016,4753.9,4753.6,23.1228]
[1756075466032,0.3255,4754.5,4753.6,23.1228]
[1756075466238,0.6761,4754.4,4753.6,23.1228]
[1756075466628,0.4016,4754.4,4754.3,0.42072]
[1756075466833,0.4016,4754.4,4754.3,20.33072]
[1756075467233,0.687,4755.0,4754.7,0.42068]
[1756075467432,0.4016,4754.9,4754.8,19.908]
[1756075467628,0.419,4755.2,4755.0,0.42065]
[1756075469140,0.6784,4755.2,4755.0,0.42065]
[1756075469431,0.419,4755.1,4755.0,0.42065]
[1756075469837,0.4109,4755.2,4754.8,50.62467]
[1756075470037,1.5985,4754.9,4754.8,30.296]
[1756075470237,1.9436,4754.9,4754.8,50.2]
[1756075470440,1.9436,4754.9,4754.8,30.296]
[1756075470641,1.9436,4754.9,4754.8,50.2]
[1756075470842,1.9436,4754.9,4754.8,30.296]
[1756075471041,1.9436,4754.9,4754.8,50.2]
[1756075471335,1.5985,4754.9,4754.8,50.199]
[1756075471540,0.8299,4754.9,4754.8,50.199]
[1756075471935,0.419,4756.4,4755.6,0.4206]
[1756075472235,0.70834448,4756.3,4756.2,0.2834]
[1756075472536,3.2078,4757.2,4756.3,0.3439]
[1756075472740,0.7686,4756.4,4756.3,0.2834]
[1756075473041,0.7686,4756.4,4756.3,19.902]
[1756075473737,0.7686,4756.4,4756.3,20.1854]
[1756075473941,0.7686,4756.4,4756.3,19.9]
[1756075474143,1.9436,4756.4,4756.3,19.9]
[1756075474642,4.7686,4756.4,4756.3,19.9]
[1756075475237,5.9436,4756.4,4756.3,19.9]
[1756075475540,1.9436,4756.4,4756.3,20.7647]
[1756075475742,1.9436,4756.4,4756.3,20.1834]
[1756075476045,1.1137,4756.4,4755.8,1.1035]
[1756075476236,4.9325,4756.1,4756.0,0.6273]
[1756075476436,5.1514,4756.1,4756.0,0.2834]
[1756075476735,1.175,4756.5,4756.0,2.33696]
[1756075476935,1.9436,4756.4,4756.3,1.1568]
[1756075477137,0.7686,4756.4,4756.3,19.896]
[1756075477646,1.9436,4756.4,4756.3,19.896]
[1756075478537,1.9436,4756.4,4756.3,21.4176]
[1756075478736,1.9436,4756.4,4756.3,21.0528]
[1756075478942,0.7686,4755.7,4755.6,1.5216]
[1756075479243,0.8299,4756.4,4755.9,0.8129]
[1756075479446,0.8299,4756.4,4756.3,1.9164]
[1756075479648,0.8299,4756.4,4756.3,21.8104]
[1756075480443,3.5529,4756.6,4756.3,21.8104]